[Event "29th Bosnjaci Open 2025"]
[Site "Bosnjaci"]
[Date "2025.01.06"]
[Round "6.6"]
[White "Petricevic, Mateo"]
[Black "Culum, Sanjin"]
[Result "0-1"]
[ECO "A46"]
[WhiteElo "2060"]
[BlackElo "2446"]
[Annotator "TA"]
[PlyCount "66"]
[EventDate "2025.01.04"]
[EventType "swiss"]
[EventCountry "CRO"]
[SourceTitle "playchess.com"]
[Source "ChessBase"]
[SourceQuality "1"]
[TimeControl "5400+30"]

{[%evp 9,66,5,25,0,0,8,4,10,30,1,21,23,11,16,52,15,47,46,29,31,40,38,92,8,91,-36,-27,-74,-15,-85,-46,-150,-175,-267,-288,-248,-261,-316,-256,-410,-401,-570,-571,-630,-399,-579,-469,-1091,-1083,-1966,-1812,-2197,-2156,-29986,-29987,-29992,-29988,-29994,-29995]} 1. d4 {[%emt 0:00:12]} Nf6 {[%emt 0:00:24]} 2. Nf3 {[%emt 0:01:07]} d5 {[%emt 0:00:05]} 3. g3 {[%emt 0:00:32]} e6 {[%emt 0:01:19]} 4. Bg2 {[%emt 0:00:09]} b5 {[%emt 0:00:03]} 5. O-O {[%emt 0:01:20]} Bb7 {[%emt 0:01:25]} 6. Bg5 {[%emt 0:08:21]} Nbd7 {[%emt 0:07:28]} 7. Qd3 {[%emt 0:11:13]} a6 {[%emt 0:00:32]} 8. Ne5 {[%emt 0:03:10] The position is equal.} Nb6 {[%emt 0:08:50]} 9. Nd2 {[%emt 0:09:46]} h6 {[%emt 0:03:43]} 10. Bxf6 {[%emt 0:14:55]} gxf6 {[%emt 0:00:35]} 11. Nef3 {[%emt 0:00:33]} f5 {[%emt 0:01:24]} 12. b3 {[%emt 0:05:01]} b4 {[%emt 0:07:34]} 13. a3 {[%emt 0:05:17]} bxa3 {[%emt 0:09:15]} 14. c4 {[%emt 0:01:56]} c5 {[%emt 0:09:36]} 15. e3 {[%emt 0:16:12][%mdl 1024] White has compensation.} Rc8 {[%emt 0:03:41] [#]} (15... Nd7 $14) 16. Rfc1 {[%emt 0:02:50]} ({White should try} 16. dxc5 $1 $16 Rxc5 (16... Bxc5 17. Qc3 $16) 17. b4 (17. Rxa3 Rc8 $11) 17... Rxc4 18. Nxc4 Nxc4 19. Nd2 Nxd2 20. Qxd2) 16... Be7 {[%emt 0:05:37]} (16... Bg7 $1 $11 {remains equal.}) 17. Ra2 {[%emt 0:04:50]} (17. dxc5 $16 Rxc5 (17... Bxc5 18. Qc3 $16) 18. b4 Rxc4 19. Nxc4 Nxc4 20. Nd2 Nxd2 21. Qxd2) 17... O-O $15 {[%emt 0:00:40]} 18. Qe2 {[%emt 0:01:57]} (18. Qc3 $11) 18... Nd7 {[%emt 0:05:42]} ({Black should play} 18... a5 $17 19. Ne5 a4 20. bxa4 cxd4 21. exd4 Ba6 (21... Nxa4 22. Qe3 $16)) 19. Ne5 {[%emt 0:00:26]} (19. Nb1 $11) 19... Nf6 {[%emt 0:00:43]} 20. g4 {[%emt 0:00:30]} (20. h4 $15) 20... fxg4 $17 {[%emt 0:03:46]} 21. Nxg4 {[%emt 0:00:05]} (21. Rxa3 $142 cxd4 22. Ra4) 21... Nxg4 $19 {[%emt 0:00:23]} 22. Qxg4+ {[%emt 0:00:06]} Kh7 {[%emt 0:00:01][%cal Od5c4] Threatens to win with ...dxc4!} 23. Qh5 {[%emt 0:01:03]} f5 {[%emt 0:02:38] Strongly threatening ...Rg8.} 24. Qh3 $2 {[%emt 0:06:41]} (24. Kh1) 24... Rg8 {[%emt 0:00:46]} 25. Kf1 {[%emt 0:00:08]} (25. Kh1 $142) 25... Qd7 {[%emt 0:02:39]} 26. cxd5 {[%emt 0:02:29]} Bxd5 {[%emt 0:00:40]} 27. e4 {[%emt 0:00:05]} (27. Bxd5 $142 Qxd5 28. Re1) 27... Qb5+ {[%emt 0:00:35]} 28. Kg1 {[%emt 0:01:39]} (28. Rc4 $142 Bxc4+ 29. Nxc4 cxd4 30. Qd3) 28... fxe4 {[%emt 0:00:32] Hoping for ...e3.} (28... cxd4 29. Rxc8 Rxc8 30. exd5 $11) 29. Kh1 {[%emt 0:00:37] [#]} Rxg2 $1 {[%emt 0:00:53]} 30. Qxg2 {[%emt 0:00:06]} Rg8 {[%emt 0:00:14]} (30... Bxb3 $2 {perishes.} 31. Rg1 (31. Rxa3 Bd5 $18) (31. Qxe4+ Kh8 $16) 31... Bg5 32. Qxe4+ (32. Rxa3 Bd5 $18) 32... Kh8 33. Nxb3 (33. Rxa3 $2 Bd5 $19) 33... Qxb3 34. Rc2 $18) 31. Qh3 {[%emt 0:00:47] White is weak on the dark squares} e3+ {[%emt 0:00:07] Black mates.} 32. Nf3 {[%emt 0:00:20]} Qb7 {[%emt 0:00:23]} 33. fxe3 {[%emt 0:00:24]} Bxf3+ {[%emt 0:00:06] Weighted Error Value: White=1.06/Black=0.34.  Mistake:       	White=10    	Black=3      Inaccurate:     	White=3     	Black=4      OK:         	White=4     	Black=10} 0-1

[Event "29th Bosnjaci Open 2025"]
[Site "Bosnjaci"]
[Date "2025.01.06"]
[Round "6.7"]
[White "Muratovic, Efim"]
[Black "Starcevic, Ante Leon"]
[Result "1-0"]
[ECO "D78"]
[WhiteElo "2322"]
[BlackElo "2200"]
[Annotator "TA"]
[PlyCount "45"]
[EventDate "2025.01.04"]
[EventType "swiss"]
[EventCountry "CRO"]
[SourceTitle "playchess.com"]
[Source "ChessBase"]
[SourceQuality "1"]
[TimeControl "5400+30"]

{[%evp 16,45,22,0,50,13,6,0,0,-14,-9,-12,-14,-13,-12,-11,-14,-20,-13,-24,-16,-44,6,3,8,6,6,3,438,438,438,427]} 1. Nf3 {[%emt 0:00:30]} Nf6 {[%emt 0:04:57]} 2. g3 {[%emt 0:01:03]} g6 {[%emt 0:00:30]} 3. Bg2 {[%emt 0:00:07]} Bg7 {[%emt 0:00:20]} 4. O-O {[%emt 0:00:57]} O-O {[%emt 0:00:06]} 5. d4 {[%emt 0:01:57]} d5 {[%emt 0:00:06]} 6. Nbd2 {[%emt 0:02:32]} c6 {[%emt 0:00:37]} 7. c4 {[%emt 0:01:15]} Ne4 {[%emt 0:00:09]} 8. e3 {[%emt 0:03:47]} Nxd2 {[%emt 0:08:02]} 9. Nxd2 {[%emt 0:03:37]} b6 {[%emt 0:03:01]} (9... Be6 $11) 10. a4 {[%emt 0:06:55]} a5 {[%emt 0:01:00]} 11. cxd5 {[%emt 0:08:59]} cxd5 {[%emt 0:00:07]} 12. b4 {[%emt 0:00:16]} axb4 {[%emt 0:13:11] next ...Nc6 is good for Black.} 13. Qb3 {[%emt 0:00:39][%csl LRb4,LRd5]} e6 {[%emt 0:02:47] Threatens to win with ...Ba6.} 14. Qxb4 {[%emt 0:00:27]} Ba6 {[%emt 0:01:11]} 15. Re1 {[%emt 0:02:14]} Nc6 {[%emt 0:00:13]} 16. Qb1 {[%emt 0:01:00]} Qd7 {[%emt 0:04:07]} 17. Ba3 {[%emt 0:02:05]} Rfb8 {[%emt 0:02:39]} 18. Rc1 {[%emt 0:04:31]} b5 {[%emt 0:19:27]} (18... e5 $15) 19. axb5 $11 {[%emt 0:01:32]} Bxb5 {[%emt 0:01:21]} 20. Bc5 {[%emt 0:04:06] Rxa8 is the strong threat.} Na5 {[%emt 0:04:20]} 21. Qb4 {[%emt 0:03:29]} Nc4 $2 {[%emt 0:05:03][%mdl 8192] [#]} (21... Nb7 $11 {and Black is okay.}) 22. Rxa8 $1 $18 {[%emt 0:00:18]} Rxa8 {[%emt 0:00:04] [#]} 23. Nxc4 $1 {[%emt 0:00:23]} 1-0

[Event "29th Bosnjaci Open 2025"]
[Site "Bosnjaci"]
[Date "2025.01.06"]
[Round "6.10"]
[White "Franc, Borna"]
[Black "Vidovic, Sasa"]
[Result "1/2-1/2"]
[ECO "B07"]
[WhiteElo "2287"]
[BlackElo "2173"]
[Annotator "TA"]
[PlyCount "54"]
[EventDate "2025.01.04"]
[EventType "swiss"]
[EventCountry "CRO"]
[SourceTitle "playchess.com"]
[Source "ChessBase"]
[SourceQuality "1"]
[TimeControl "5400+30"]

{[%evp 16,54,62,68,68,68,70,70,63,69,61,57,58,39,42,-1,-11,-40,-29,-36,0,-2,-3,-29,-17,-31,-31,-37,-59,-58,-31,-30,-37,-88,0,0,0,0,734,0,4]} 1. e4 {[%emt 0:00:09]} d6 {[%emt 0:09:10]} 2. d4 {[%emt 0:00:53]} Nf6 {[%emt 0:00:06]} 3. Nc3 {[%emt 0:00:04]} c6 {[%emt 0:01:19]} 4. f4 {[%emt 0:00:28]} Qa5 {[%emt 0:00:07]} 5. Bd3 {[%emt 0:00:14]} e5 {[%emt 0:00:10]} 6. Nf3 {[%emt 0:00:06]} Bg4 {[%emt 0:00:11][%cal Bc8g4,Bg4h5,Bh5g6][%mdl 32]} 7. Be3 {[%emt 0:00:05]} Nbd7 {[%emt 0:05:32]} 8. O-O {[%emt 0:00:59]} Be7 {[%emt 0:00:27]} 9. h3 {[%emt 0:00:04]} Bh5 {[%emt 0:04:30]} 10. g4 {[%emt 0:00:15]} exf4 {[%emt 0:00:05]} 11. Bxf4 {[%emt 0:00:03]} Bg6 {[%emt 0:00:13]} 12. Nh4 {[%emt 0:00:10]} Qb6 {[%emt 0:11:14][%csl LRb2,LRd4]} 13. Be3 {[%emt 0:13:20]} O-O $1 {[%emt 0:06:43]} 14. Nf5 {[%emt 0:04:24]} Bxf5 {[%emt 0:00:46]} 15. exf5 {[%emt 0:03:44]} h6 $1 {[%emt 0:02:44][%cal Od6d5]} 16. Qd2 {[%emt 0:01:26][%cal Od4d5]} Nh7 {[%emt 0:02:38][%cal Oe7g5]} 17. Kg2 {[%emt 0:04:04][%cal Oe3h6]} Bg5 {[%emt 0:02:09]} 18. Bxg5 {[%emt 0:00:46]} hxg5 {[%emt 0:01:20]} 19. Qf2 {[%emt 0:18:54]} Ndf6 {[%emt 0:03:41]} 20. Rab1 {[%emt 0:08:46]} Rfe8 {[%emt 0:01:27]} 21. Rh1 {[%emt 0:01:49]} Re7 {[%emt 0:03:27]} 22. Be2 {[%emt 0:03:31]} Ne4 {[%emt 0:03:28]} 23. Nxe4 {[%emt 0:00:51]} Rxe4 {[%emt 0:00:12]} 24. c3 {[%emt 0:01:50]} (24. d5 $1 $15) 24... Rf4 {[%emt 0:10:00]} (24... Rae8 $17 25. Bf3 Re3) 25. Bf3 $11 {[%emt 0:00:55] and h4 should not be overlooked} Nf6 {[%emt 0:00:34]} 26. Rhe1 {[%emt 0:02:54]} Re4 $2 {[%emt 0:00:53][%mdl 8192]} 27. Rh1 $2 {[%emt 0:00:11]} (27. Bxe4 $18 Qa5 28. h4) 27... Re7 1/2-1/2

[Event "29th Bosnjaci Open 2025"]
[Site "Bosnjaci"]
[Date "2025.01.06"]
[Round "6.11"]
[White "Vujnovic, Patricija"]
[Black "Zadravec, Matija"]
[Result "0-1"]
[ECO "E49"]
[WhiteElo "2121"]
[BlackElo "2283"]
[Annotator "TA"]
[PlyCount "92"]
[EventDate "2025.01.04"]
[EventType "swiss"]
[EventCountry "CRO"]
[SourceTitle "playchess.com"]
[Source "ChessBase"]
[SourceQuality "1"]
[TimeControl "5400+30"]

{[%evp 30,92,17,0,0,-25,-23,-17,-14,-96,-85,-119,-96,-106,26,-156,-114,-127,-129,-160,-30,-16,-39,-33,-24,-43,0,0,0,-245,-104,-209,-218,-514,-121,-109,-115,-138,-125,-414,-425,-417,-425,-429,-419,-612,-328,-662,-466,-488,-235,-227,-216,-240,-241,-532,-524,-486,-480,-662,-335,-29995,-29996,-29996,-29997]} 1. d4 {[%emt 0:00:01]} Nf6 {[%emt 0:00:09]} 2. c4 {[%emt 0:00:10]} e6 {[%emt 0:00:06]} 3. Nc3 {[%emt 0:00:02]} Bb4 {[%emt 0:00:06]} 4. e3 {[%emt 0:00:08]} O-O {[%emt 0:00:40]} 5. Bd3 {[%emt 0:00:43]} d5 {[%emt 0:00:29]} 6. a3 {[%emt 0:01:46]} Bxc3+ {[%emt 0:00:07]} 7. bxc3 {[%emt 0:00:00]} dxc4 {[%emt 0:00:11]} 8. Bxc4 {[%emt 0:00:04]} c5 {[%emt 0:00:15]} 9. Ne2 {[%emt 0:00:44]} Qc7 {[%emt 0:01:49]} 10. Bd3 {[%emt 0:01:34]} Nc6 {[%emt 0:02:05]} 11. O-O {[%emt 0:00:19]} e5 {[%emt 0:00:53]} 12. Qc2 {[%emt 0:06:25]} Be6 {[%emt 0:05:10]} 13. Ng3 {[%emt 0:00:46]} Rfd8 {[%emt 0:05:57]} 14. f4 {[%emt 0:08:32]} exd4 {[%emt 0:14:45]} 15. cxd4 {[%emt 0:00:05]} Na5 {[%emt 0:01:04]} 16. Bb2 {[%emt 0:05:59]} Bb3 {[%emt 0:06:29]} 17. Qd2 {[%emt 0:02:13]} Bc4 {[%emt 0:01:22]} 18. Rad1 {[%emt 0:04:35]} Rac8 {[%emt 0:03:33]} 19. Qe2 {[%emt 0:16:18]} (19. e4 $11 {remains equal.}) 19... Bxd3 $17 {[%emt 0:04:33]} 20. Rxd3 {[%emt 0:00:01]} c4 $1 {[%emt 0:01:52]} 21. Rc3 {[%emt 0:00:01]} Nd5 {[%emt 0:02:34]} (21... Nb3 $17 {and ...b5 should not be overlooked} 22. Rd1 Nd5) 22. Qg4 $2 {[%emt 0:00:15] [#]} (22. e4 $1 $11 Re8 (22... Nxc3 23. Bxc3 f6 24. Nf5 $19) (22... Nxf4 23. Qg4 $16) 23. Qg4) 22... Qb6 $1 $17 {[%emt 0:07:51]} (22... Nxc3 23. Bxc3 f6 24. Nh5 $16) 23. Rf2 {[%emt 0:05:07]} Qg6 {[%emt 0:03:03]} 24. Qf3 {[%emt 0:00:12]} f5 {[%emt 0:03:47]} (24... Nb3 $17 25. f5 Qc6 26. Rxb3 cxb3) 25. e4 $1 $11 {[%emt 0:05:50]} fxe4 {[%emt 0:02:54]} (25... Nxc3 26. Qxc3 fxe4 27. Qxa5) 26. Nxe4 {[%emt 0:00:01]} Qf5 {[%emt 0:14:29]} 27. g4 {[%emt 0:01:44]} Qf8 {[%emt 0:01:01]} (27... Qg6 $5) 28. f5 {[%emt 0:01:36]} Nb3 $1 {[%emt 0:01:09]} (28... Nxc3 29. Bxc3 Nc6 (29... Qxa3 $2 30. f6 $18) 30. f6 $16) 29. Ng5 $2 {[%emt 0:04:52]} (29. g5 $11) 29... Qf6 {[%emt 0:01:45]} (29... Nxc3 30. Qh3 h6 31. Ne6 $11) (29... Nxd4 $19 30. Qe4 Qc5 (30... Nxc3 31. Bxc3 h6 32. f6 $16)) 30. Ne4 {[%emt 0:03:32]} (30. Ne6 $17 Nxd4 31. Qg3 Nxe6 32. Rxc4) 30... Qb6 $19 {[%emt 0:01:07]} (30... Qxd4 $2 31. Rxb3 c3 32. Nxc3 $18 (32. Bxc3 Nxc3 33. Rxc3 Rxc3 $18)) 31. f6 $2 {[%emt 0:00:27]} (31. Rcc2) 31... Nxf6 $2 {[%emt 0:04:59]} (31... Nxd4 $19 {and Black stays clearly on top.} 32. Qd1 (32. f7+ $2 Kf8 $17) 32... Nxc3 (32... Nxf6 $2 33. Nxf6+ gxf6 34. Rg3 $19) 33. f7+ Kh8 34. Bxc3 Nb5) 32. Nxf6+ $17 {[%emt 0:00:15]} gxf6 {[%emt 0:00:47]} 33. Re3 {[%emt 0:09:03]} Nxd4 {[%emt 0:01:50]} 34. Qxf6 $2 {[%emt 0:01:28][%mdl 8192]} (34. Qe4 $17) 34... Qxf6 $19 {[%emt 0:00:38]} 35. Rxf6 {[%emt 0:00:01] [#]} c3 $1 {[%emt 0:00:38]} 36. Bxc3 {[%emt 0:03:24]} Rxc3 {[%emt 0:00:51]} 37. Re7 {[%emt 0:00:03]} (37. Rxc3 $142 Ne2+ 38. Kf2 Nxc3 39. Re6) 37... Rf3 {[%emt 0:02:29]} 38. Rh6 $2 {[%emt 0:01:56]} (38. Rxf3 Nxf3+ 39. Kf2) 38... Rdf8 {[%emt 0:01:46]} 39. Rexh7 {[%emt 0:03:32]} R8f7 {[%emt 0:00:57]} ({Not} 39... Rxa3 40. Rh8+ Kf7 41. R8h7+ Ke8 42. Rxb7 Ra1+ 43. Kg2 Ra2+ 44. Kg3 Rf3+ 45. Kh4 Rxh2+ 46. Kg5 Rxh6 47. Kxh6 $19) (39... Ne2+ $142 40. Kg2 Rf2+ (40... Rxa3 41. Rh8+ Kg7 42. R6h7+ Kg6 43. Rh6+ Kf7 44. R8h7+ Kg8 45. Rh8+ Kg7 46. R8h7+ Kg8 $11) 41. Kh1 Rf1+ 42. Kg2 R8f2+ 43. Kh3 Nf4+ 44. Kh4 Rxh2+ 45. Kg3 Rg2+ 46. Kh4 Ne6 47. Rh8+ Kf7 48. R8h7+ Ng7) 40. Rh8+ $19 {[%emt 0:00:31]} Kg7 {[%emt 0:00:07]} 41. R6h7+ {[%emt 0:00:10]} Kg6 {[%emt 0:00:31]} 42. Rh6+ $2 {[%emt 0:00:59]} (42. Rxf7 {was forced.} Rxf7 (42... Kxf7 $2 43. Rh7+ Kf6 44. Rxb7 $19) 43. Kg2) 42... Kg5 $19 {[%emt 0:00:21]} 43. Rh5+ {[%emt 0:00:27]} Kf4 {[%emt 0:00:16]} 44. g5 {[%emt 0:02:15]} Rg7 {[%emt 0:01:13]} 45. h4 $2 {[%emt 0:03:41]} (45. R8h7 $19 Rxg5+ 46. Rxg5 Kxg5 47. Rxb7) 45... Kg3 {[%emt 0:00:41]} 46. Re8 {[%emt 0:00:16]} Rgf7 {[%emt 0:00:36]} 0-1

[Event "29th Bosnjaci Open 2025"]
[Site "Bosnjaci"]
[Date "2025.01.06"]
[Round "6.12"]
[White "Jakovic, Roko"]
[Black "Kanizaj, Benjamin"]
[Result "1-0"]
[ECO "E52"]
[WhiteElo "2273"]
[BlackElo "2096"]
[Annotator "TA"]
[PlyCount "109"]
[EventDate "2025.01.04"]
[EventType "swiss"]
[EventCountry "CRO"]
[SourceTitle "playchess.com"]
[Source "ChessBase"]
[SourceQuality "1"]
[TimeControl "5400+30"]

{[%evp 11,109,16,9,-1,0,-3,18,8,8,12,4,5,28,-12,-5,-11,-10,-14,-6,-7,-7,-12,-6,-15,22,43,35,34,31,33,35,30,79,79,75,68,67,68,85,75,67,67,65,58,72,66,73,74,110,110,232,205,201,188,256,249,249,249,231,218,366,356,457,454,497,489,483,434,630,620,586,486,681,646,1285,536,1152,1087,8345,5952,29970,29971,29965,10004,5609,5181,29973,29973,29973,29974,29974,29974,29975,29976,29976,29977,29977,29977,29977,29978]} 1. d4 {[%emt 0:00:02]} Nf6 {[%emt 0:02:46]} 2. c4 {[%emt 0:00:12]} e6 {[%emt 0:00:36]} 3. Nc3 {[%emt 0:01:07]} Bb4 {[%emt 0:00:22]} 4. e3 {[%emt 0:01:18]} O-O {[%emt 0:00:38]} 5. Bd3 {[%emt 0:00:14]} d5 {[%emt 0:02:43]} 6. Nf3 {[%emt 0:01:22]} b6 {[%emt 0:00:46]} 7. cxd5 {[%emt 0:04:10]} exd5 {[%emt 0:00:17]} 8. O-O {[%emt 0:02:50]} Ba6 {[%emt 0:05:07]} 9. Bxa6 {[%emt 0:06:50] The position is equal.} Nxa6 {[%emt 0:00:35]} 10. Qd3 {[%emt 0:04:54]} Qc8 {[%emt 0:04:40]} 11. Bd2 {[%emt 0:02:40]} c5 {[%emt 0:17:39]} 12. a3 {[%emt 0:07:55]} Bxc3 {[%emt 0:05:28]} 13. Bxc3 {[%emt 0:00:42]} c4 {[%emt 0:04:23]} 14. Qc2 {[%emt 0:01:40]} b5 {[%emt 0:05:30]} 15. Nd2 {[%emt 0:04:36]} Re8 {[%emt 0:09:59]} 16. Rfe1 {[%emt 0:05:17]} Qb7 {[%emt 0:04:59]} 17. f3 {[%emt 0:09:02]} b4 {[%emt 0:03:49]} 18. axb4 {[%emt 0:00:36]} Nxb4 {[%emt 0:00:11]} 19. Bxb4 {[%emt 0:00:10]} Qxb4 {[%emt 0:00:02]} 20. Ra4 {[%emt 0:09:59]} Qb5 {[%emt 0:06:15]} 21. b3 {[%emt 0:00:39]} c3 {[%emt 0:01:15]} 22. Qxc3 $16 {[%emt 0:03:33]} Rac8 {[%emt 0:00:54]} 23. Ra5 {[%emt 0:05:34][%cal Ba4a5,Ba5b5,Bb5b7][%mdl 32]} Rxc3 {[%emt 0:04:00]} 24. Rxb5 {[%emt 0:00:07]} Rcxe3 {[%emt 0:00:25]} 25. Rxe3 {[%emt 0:00:15]} Rxe3 $14 {[%emt 0:00:01][%mdl 4096] Endgame. KRN-KRN} 26. Kf2 {[%emt 0:00:32]} a6 {[%emt 0:02:14]} 27. Rb7 {[%emt 0:03:22]} Re6 {[%emt 0:03:51]} 28. b4 {[%emt 0:00:51]} Kf8 {[%emt 0:05:06]} 29. Nb3 {[%emt 0:00:53]} Re7 {[%emt 0:00:42]} 30. Rb6 {[%emt 0:03:08]} Re6 {[%emt 0:03:38] [#] Loses the game.} (30... Ne8 $16) 31. Rxe6 $1 $18 {[%emt 0:00:48]} fxe6 {[%emt 0:00:01] KN-KN} 32. Nc5 {[%emt 0:00:08][%csl LRa6,LRe6]} Ke7 {[%emt 0:00:59]} (32... Ne8 {might work better.} 33. Nxe6+ (33. Nxa6 Nd6 $14) 33... Ke7) 33. Nxa6 {[%emt 0:00:16]} Kd6 {[%emt 0:04:16]} 34. b5 {[%emt 0:00:57]} Nd7 {[%emt 0:00:53]} 35. Ke3 {[%emt 0:03:05]} e5 {[%emt 0:01:57]} (35... h6 {is a better defense.} 36. Kd2 h5) 36. Nb4 {[%emt 0:05:13]} exd4+ {[%emt 0:00:45]} 37. Kxd4 {[%emt 0:00:07]} Nc5 {[%emt 0:00:44]} 38. Nxd5 {[%emt 0:01:09]} Nb3+ {[%emt 0:00:11]} 39. Kc3 {[%emt 0:01:53]} Na5 {[%emt 0:00:33]} (39... Nc5 $142 40. Ne3 Ne6) 40. Kb4 {[%emt 0:00:41]} Nb7 {[%emt 0:00:01]} 41. Nc3 {[%emt 0:00:30]} Ke5 {[%emt 0:00:28]} (41... h6 $142 42. Ne4+ Kd5) 42. Kc4 {[%emt 0:00:59]} Kf4 {[%emt 0:00:21]} 43. Nd1 {[%emt 0:02:10]} (43. Kd5 $142 Nd8 44. b6) 43... h5 {[%emt 0:01:00]} 44. Kd4 {[%emt 0:00:51]} g5 {[%emt 0:00:42]} 45. Nf2 {[%emt 0:00:42] Nd3+ would kill now.} Kf5 {[%emt 0:00:42]} 46. Kd5 {[%emt 0:00:16]} Kf4 {[%emt 0:00:29]} 47. Nh3+ {[%emt 0:00:40]} (47. b6 $142 Ke3 48. Ne4 Ke2 49. Nc5 (49. Nxg5 Ke3 $18) 49... Na5 50. Nb3 Nxb3 51. b7 Nd2 52. b8=Q (52. b8=B h4 $11)) 47... Kf5 {[%emt 0:00:06]} 48. b6 {[%emt 0:00:14]} g4 {[%emt 0:00:28]} 49. fxg4+ {[%emt 0:00:38] White mates.} hxg4 {[%emt 0:00:01]} 50. Nf2 {[%emt 0:00:34]} Kf4 {[%emt 0:00:27] [#]} 51. Nxg4 $1 {[%emt 0:00:35][%mdl 512]} Kxg4 {[%emt 0:00:36]} (51... Nd8 52. Ne5) 52. Kc6 {[%emt 0:00:07]} Nd8+ {[%emt 0:00:04]} 53. Kd7 {[%emt 0:00:08]} Nb7 {[%emt 0:00:17]} 54. Kc7 {[%emt 0:00:05]} Nc5 {[%emt 0:00:11]} 55. b7 {[%emt 0:00:10] Weighted Error Value: White=0.14 (very precise) /Black=0.37.  Mistake:       	---       	Black=5      Inaccurate:     	White=1     	Black=4      OK:         	White=16    	Black=9      Best:        	White=5     	Black=1      Strong:       	White=1     	---} 1-0